[Event "3rd President Cup-A 2024"]
[Site "Tashkent"]
[Date "2024.11.26"]
[Round "6.1"]
[White "Abdusattorov, Nodirbek"]
[Black "Sindarov, Javokhir"]
[Result "1/2-1/2"]
[ECO "D35"]
[WhiteElo "2777"]
[BlackElo "2682"]
[Annotator "TA"]
[PlyCount "69"]
[EventDate "2024.11.22"]
[EventType "swiss"]
[EventCountry "UZB"]
[SourceTitle "playchess.com"]
[Source "ChessBase"]
[SourceQuality "1"]
[TimeControl "5400+30"]

{[%evp 13,69,14,16,22,19,22,30,14,29,0,0,0,0,0,0,12,7,0,0,0,0,0,0,-19,-6,-20,0,0,6,12,16,20,11,12,15,0,0,0,0,-9,0,0,0,0,0,0,0,0,25,19,35,-8,-12,-8,-13,-10,-11,-11]} 1. c4 {[%emt 0:00:22]} e6 {[%emt 0:01:01]} 2. Nc3 {[%emt 0:00:09]} d5 {[%emt 0:00:09]} 3. d4 {[%emt 0:00:17]} Nf6 {[%emt 0:00:07]} 4. cxd5 {[%emt 0:00:15]} exd5 {[%emt 0:00:06]} 5. Bg5 {[%emt 0:00:14]} Be7 {[%emt 0:00:08]} 6. e3 {[%emt 0:00:25]} O-O {[%emt 0:00:11]} 7. Bd3 {[%emt 0:00:41]} Re8 {[%emt 0:00:08]} 8. Nf3 {[%emt 0:01:42]} h6 {[%emt 0:01:12]} 9. Bf4 {[%emt 0:00:46][%cal Bg5f4,Bf4c7,Bc7e5][%mdl 32]} c5 {[%emt 0:00:06]} 10. O-O {[%emt 0:00:28] White has an edge.} Nc6 {[%emt 0:00:21]} 11. Nb5 {[%emt 0:00:20]} c4 {[%emt 0:00:50]} 12. Bc2 {[%emt 0:00:07]} Nh5 {[%emt 0:01:35] [#] White must now prevent ...Nxf4.} 13. Bc7 {[%emt 0:00:10]} Qd7 {[%emt 0:00:06]} 14. Be5 {[%emt 0:00:21]} (14. Ne5 {seems wilder.} Nxe5 15. Bxe5 Qxb5 16. Qxh5 Qxb2 17. Bh7+) 14... Nf6 {[%emt 0:11:40]} 15. h3 {[%emt 0:00:46]} a6 {[%emt 0:02:24]} 16. Nc3 {[%emt 0:00:08]} b5 {[%emt 0:14:43]} 17. a3 {[%emt 0:00:11]} Bb7 {[%emt 0:03:38]} 18. Bxf6 {[%emt 0:00:19]} Bxf6 {[%emt 0:00:16]} 19. Nh2 $1 {[%emt 0:00:07]} Bd8 {[%emt 0:10:30]} 20. Qh5 {[%emt 0:02:10][%cal Oh2g4]} b4 {[%emt 0:02:27]} 21. Bf5 {[%emt 0:03:35]} ({Reject} 21. Nxd5 Nxd4 22. Rfd1 (22. exd4 b3 $17) 22... Qxd5 $15 (22... Nxc2 $2 {is the wrong capture.} 23. Nf6+ Bxf6 24. Rxd7 $18)) (21. Qxd5 $2 Qxd5 22. Nxd5 b3 $17) 21... Qd6 {[%emt 0:02:05]} 22. axb4 {[%emt 0:02:20]} Nxb4 {[%emt 0:00:37]} 23. Ng4 {[%emt 0:02:54]} Bc8 {[%emt 0:13:38]} 24. Bb1 {[%emt 0:05:24]} (24. Bxc8 {simplifies} Rxc8 25. f4 Qg6 26. Qxg6 fxg6 27. Rad1) 24... Bxg4 {[%emt 0:01:17]} 25. hxg4 {[%emt 0:00:51]} Rb8 {[%emt 0:03:08]} 26. Rd1 {[%emt 0:11:12]} Bc7 {[%emt 0:02:11]} 27. Rd2 {[%emt 0:02:46]} Re6 {[%emt 0:05:19]} 28. Qh3 {[%emt 0:03:06]} Qd8 {[%emt 0:24:37]} 29. Bf5 {[%emt 0:11:55]} Rd6 {[%emt 0:00:00]} 30. Rad1 {[%emt 0:01:03]} g6 {[%emt 0:00:00]} 31. Bb1 {[%emt 0:00:33]} Kg7 {[%emt 0:00:00]} 32. e4 {[%emt 0:06:14]} dxe4 {[%emt 0:00:00] The position is equal.} 33. Nxe4 {[%emt 0:00:06][%cal Od4d5] d5! would now be deadly.} Rd5 {[%emt 0:00:00] Strongly threatening ...Bf4.} 34. Nc3 {[%emt 0:00:48] [#]} Bf4 $1 {[%emt 0:00:00]} 35. Nxd5 {[%emt 0:11:11] A balanced but interesting game.   Weighted Error Value: White=0.06 (flawless) /Black=0.04 (flawless) .  Inaccurate:     	White=2     	---        OK:         	White=13    	Black=14     Best:        	White=1     	Black=1      Strong:       	White=1     	---} 1/2-1/2

[Event "3rd President Cup-A 2024"]
[Site "Tashkent"]
[Date "2024.11.26"]
[Round "6.2"]
[White "Atabayev, Saparmyrat"]
[Black "Nihal Sarin"]
[Result "0-1"]
[ECO "B36"]
[WhiteElo "2520"]
[BlackElo "2676"]
[Annotator "TA"]
[PlyCount "92"]
[EventDate "2024.11.22"]
[EventType "swiss"]
[EventCountry "UZB"]
[SourceTitle "playchess.com"]
[Source "ChessBase"]
[SourceQuality "1"]
[TimeControl "5400+30"]

{[%evp 23,92,52,54,37,55,50,45,17,27,24,28,19,20,-7,-19,-15,-8,-38,-27,-74,-73,-74,-67,-81,-52,-95,-97,-168,-155,-156,-174,-176,-162,-182,-170,-183,-187,-189,-185,-225,-202,-231,-229,-244,-225,-258,-260,-286,-258,-257,-233,-351,-246,-617,-593,-598,-599,-729,-722,-961,-961,-948,-948,-1003,-915,-987,-954,-917,-842,-3447,-1410]} 1. e4 {[%emt 0:00:02]} c5 {[%emt 0:00:51]} 2. Nf3 {[%emt 0:00:04]} Nc6 {[%emt 0:00:06]} 3. d4 {[%emt 0:00:07]} cxd4 {[%emt 0:00:05]} 4. Nxd4 {[%emt 0:00:02]} g6 {[%emt 0:00:09]} 5. c4 {[%emt 0:02:36]} Nf6 {[%emt 0:01:55]} 6. Nc3 {[%emt 0:00:32]} d6 {[%emt 0:00:08]} 7. Be2 {[%emt 0:00:35]} Nxd4 {[%emt 0:00:19]} 8. Qxd4 {[%emt 0:00:04]} Bg7 {[%emt 0:00:09]} 9. Be3 {[%emt 0:00:53]} O-O {[%emt 0:00:09]} 10. Qd2 {[%emt 0:00:10]} Bd7 {[%emt 0:00:24]} 11. f3 {[%emt 0:00:58]} Bc6 {[%emt 0:01:05]} 12. O-O {[%emt 0:03:15]} a5 {[%emt 0:00:10]} 13. Rfd1 {[%emt 0:01:55]} Nd7 {[%emt 0:01:19]} 14. Bf1 {[%emt 0:00:35]} Nc5 {[%emt 0:04:56]} 15. Ne2 {[%emt 0:02:08] White is slightly better.} a4 {[%emt 0:06:44]} 16. Rab1 {[%emt 0:00:53]} Qa5 {[%emt 0:03:07]} 17. Qc1 {[%emt 0:20:21]} Rfc8 {[%emt 0:03:52]} 18. b4 {[%emt 0:02:13]} axb3 {[%emt 0:00:07]} 19. axb3 {[%emt 0:00:01] [#] b4 is the strong threat.} Qa3 {[%emt 0:22:55]} 20. Nd4 {[%emt 0:11:26]} Qxc1 {[%emt 0:00:53]} 21. Rdxc1 {[%emt 0:07:50]} (21. Bxc1 $11 Bd7 22. g4) 21... Ra3 $17 {[%emt 0:01:01]} 22. Nxc6 {[%emt 0:02:24]} bxc6 {[%emt 0:10:19]} 23. Rd1 {[%emt 0:15:19]} Rb8 {[%emt 0:06:02]} (23... Nxb3 $6 24. Rd3 Rb8 25. c5 $11) 24. Bf2 {[%emt 0:03:34]} Bc3 {[%emt 0:04:18]} (24... Rbxb3 25. Bxc5 Rxb1 (25... dxc5 26. Rxb3 Rxb3 27. Rd8+ Bf8 28. e5 $11) 26. Rxb1 $15) 25. e5 {[%emt 0:04:14]} Bxe5 $19 {[%emt 0:00:22]} (25... Nxb3 26. exd6 exd6 27. Rxd6 $11) 26. b4 {[%emt 0:00:01]} Na4 {[%emt 0:00:33] aiming for ...Nc3. Black is much more active.} 27. Be1 {[%emt 0:00:09]} c5 {[%emt 0:06:12]} 28. b5 {[%emt 0:06:39] White is weak on the dark squares} Bd4+ {[%emt 0:00:16]} 29. Kh1 {[%emt 0:00:07]} Nb6 $36 {[%emt 0:00:07][%mdl 2048] Keeping White busy.} 30. h4 {[%emt 0:01:05]} f5 {[%emt 0:01:09]} 31. Kh2 {[%emt 0:00:09]} Kf7 {[%emt 0:00:36]} 32. Bd2 {[%emt 0:00:35]} e5 {[%emt 0:00:31]} 33. Bh6 {[%emt 0:01:11]} Ke6 {[%emt 0:01:30]} 34. Bd3 {[%emt 0:00:17]} Rba8 {[%emt 0:01:20]} 35. Rbc1 {[%emt 0:00:11]} Rb3 {[%emt 0:02:17]} 36. Bg5 {[%emt 0:00:29]} h5 {[%emt 0:02:32]} 37. Rb1 {[%emt 0:00:12]} (37. Rc2 $142) 37... Rba3 {[%emt 0:01:00]} (37... Raa3 38. Rxb3 Rxb3 39. Bd8 $19) 38. g4 $2 {[%emt 0:00:33]} (38. Rbc1) 38... hxg4 {[%emt 0:01:40] Black is clearly winning.} (38... fxg4 39. fxg4 hxg4 40. Kh1 $19) 39. fxg4 {[%emt 0:00:02]} e4 {[%emt 0:00:13]} 40. gxf5+ {[%emt 0:00:14]} gxf5 {[%emt 0:00:02]} 41. Bf1 {[%emt 0:00:00]} Be5+ {[%emt 0:02:44]} 42. Kh1 {[%emt 0:00:14]} Rg3 {[%emt 0:01:49] [#] And now ...Rh8 would win.} 43. Be2 {[%emt 0:00:29]} Rh3+ {[%emt 0:00:58]} 44. Kg1 {[%emt 0:00:14]} Rg8 {[%emt 0:02:26]} 45. Kf2 {[%emt 0:00:25]} Rh2+ {[%emt 0:00:14]} 46. Ke3 {[%emt 0:00:23]} Bd4+ {[%emt 0:00:45] White got outplayed after the opening.   Weighted Error Value: White=0.62/Black=0.09 (flawless) .  Mistake:       	White=4     	---        Inaccurate:     	White=5     	Black=1      OK:         	White=5     	Black=13     Best:        	White=1     	Black=3} (46... Ra8 $142 47. Kd2 Ra2+ (47... Nxc4+ $2 48. Ke1 $19) 48. Ke1 Raxe2+ (48... Rhxe2+ 49. Kf1 Nxc4 50. Bc1 Rg2 51. Rb3 Bd4 52. Rxd4 cxd4 53. h5 Raf2+ 54. Ke1 e3 55. Bxe3 dxe3 56. Rxe3+ Nxe3 57. h6 Rf1#) 49. Kf1 Bd4 (49... Nxc4 {leads to mate.} 50. Rb3 e3 51. Bxe3 Nxe3+ 52. Rxe3 Rxe3 53. b6 Ree2 54. h5 Ref2+ 55. Kg1 Rhg2+ 56. Kh1 Rg4 57. Rxd6+ Kxd6 58. h6 Rh2#) 50. Rd2 Rxd2 51. Bxd2 Rh1+ (51... Rxd2 {gets mated.} 52. Re1 Rf2+ 53. Kg1 Nxc4 54. Rf1 Rf3+ 55. Kh2 Rxf1 56. Kh3 Rf3+ 57. Kh2 Ne3 58. Kh1 Be5 59. h5 Rf1#) 52. Ke2 Rxb1 53. h5 Nxc4 54. Bf4 d5 (54... Rxb5 {is a self mate.} 55. Bc1 Rb1 56. Bf4 Ne5 57. h6 Nf3 58. Bg3 f4 59. Bf2 Bxf2 60. Kxf2 Rb2+ 61. Kf1 e3 62. h7 Rf2#) 55. Bd2 Rb2 (55... Rxb5 56. h6 Rb2 57. h7 f4 58. h8=Q f3+ 59. Kd1 Rxd2+ 60. Kc1 Bxh8 61. Kb1 f2 62. Kc1 f1=Q#) 56. Ke1 Rxd2 (56... Nxd2 57. Kd1 f4 58. h6 f3 59. h7 f2 60. Ke2 f1=Q#) 57. Kf1 Ne5 58. b6 Nf3 59. h6 Rf2#) 0-1

[Event "3rd President Cup-A 2024"]
[Site "Tashkent"]
[Date "2024.11.26"]
[Round "6.3"]
[White "Sankalp Gupta"]
[Black "Karthikeyan, Murali"]
[Result "1-0"]
[ECO "B22"]
[WhiteElo "2539"]
[BlackElo "2625"]
[Annotator "TA"]
[PlyCount "51"]
[EventDate "2024.11.22"]
[EventType "swiss"]
[EventCountry "UZB"]
[SourceTitle "playchess.com"]
[Source "ChessBase"]
[SourceQuality "1"]
[TimeControl "5400+30"]

{[%evp 9,51,71,35,36,68,50,51,33,57,27,31,16,47,30,44,51,76,66,97,108,115,100,91,97,124,107,132,120,358,367,434,431,436,431,565,530,566,568,676,677,1735,1890,1255,188]} 1. e4 {[%emt 0:00:43]} c5 {[%emt 0:00:20]} 2. c3 {[%emt 0:00:02]} d5 {[%emt 0:00:22]} 3. exd5 {[%emt 0:00:03]} Nf6 {[%emt 0:00:18]} 4. Qa4+ {[%emt 0:05:37]} Nbd7 {[%emt 0:00:27]} 5. c4 {[%emt 0:07:15]} b5 {[%emt 0:01:00]} 6. Qxb5 {[%emt 0:03:11]} Rb8 {[%emt 0:00:31]} 7. Qa4 {[%emt 0:00:13][%cal Of1e2]} e6 {[%emt 0:00:10]} 8. dxe6 {[%emt 0:08:44] White is slightly better.} (8. Qxa7 exd5 9. Be2 Bd6 $15) 8... fxe6 {[%emt 0:00:14]} 9. Nf3 {[%emt 0:05:37][%cal Ob1c3]} (9. Qxa7 Bd6 $11) 9... Bd6 {[%emt 0:01:07]} 10. Be2 {[%emt 0:00:02][%cal Od2d3]} (10. Qxa7 Bb7 $11) 10... O-O {[%emt 0:03:47]} 11. d3 {[%emt 0:00:08][%cal Ob1c3]} (11. Qxa7 Bb7 $15) 11... Bb7 {[%emt 0:01:07]} 12. Nbd2 {[%emt 0:04:14]} (12. Qxa7 Bxf3 13. gxf3 (13. Bxf3 Ne5 $14) 13... Ne5 $15) 12... Nh5 {[%emt 0:21:05]} 13. Ne4 {[%emt 0:02:38]} (13. Qxa7 Nf4 14. Ne4 Nxg2+ 15. Kf1 Nf4 (15... Nh4 16. Bg5 $17) 16. Bxf4 (16. Nxd6 $2 Nxe2 17. Bg5 Qc7 $19) 16... Bxf4 $17) 13... Nf4 {[%emt 0:05:40]} 14. Bxf4 {[%emt 0:19:20]} (14. Nxd6 Nxg2+ 15. Kf1 Bxf3 16. Bxf3 (16. Qxa7 $2 Qf6 $19) 16... Rxf3 $17) 14... Bxf4 {[%emt 0:00:53]} 15. O-O {[%emt 0:00:15]} (15. Qxa7 $6 Bxe4 16. dxe4 Ne5 $11) 15... Ne5 {[%emt 0:14:04][%cal Bd7e5,Be5g6,Bg6f4][%mdl 32]} 16. Rad1 {[%emt 0:07:02]} (16. Nxc5 Bxf3 (16... Nxf3+ $2 17. Bxf3 Bxf3 18. Ne4 $19) 17. Qc2 Bxh2+ 18. Kh1 (18. Kxh2 {leads to mate.} Qh4+ 19. Kg1 Ng4 20. Rfe1 Qxf2+ 21. Kh1 Bxg2#) 18... Qh4 19. Rfd1 Bg3+ (19... Qxf2 $2 20. Bxf3 Qxc2 21. Rf1 $19) (19... Bf4+ $2 20. Kg1 Qh2+ 21. Kf1 Qh1#) 20. Kg1 Qh2+ 21. Kf1 Qh1#) (16. Qxa7 $6 Bxe4 17. dxe4 Rxb2 18. Nxe5 Bxe5 19. Qxc5 Qf6 $11) 16... Qc7 {[%emt 0:15:34]} 17. g3 {[%emt 0:01:56]} (17. Qxa7 $2 {too greedy.} Nxf3+ 18. Bxf3 Bxh2+ 19. Kh1 Rxf3 20. Qxc5 (20. gxf3 $2 {perishes.} Bd6 $19) 20... Rf5 21. Qxc7 Bxc7 $19) 17... Bxe4 {[%emt 0:01:19]} 18. dxe4 {[%emt 0:00:48]} Rxb2 $2 {[%emt 0:00:21] A mistake that costs the game.} (18... Rb4 $16 19. Qa3 Nxf3+ 20. Qxf3 Be5) 19. gxf4 $18 {[%emt 0:03:30]} Ng6 {[%emt 0:05:11][%cal Oc7f4] [#] Hoping for ...Qxf4!} 20. Rd7 {[%emt 0:06:24] White is clearly winning.} Qxf4 {[%emt 0:00:27]} 21. Qxa7 {[%emt 0:00:07]} Qh6 {[%emt 0:09:34]} 22. Bd1 {[%emt 0:00:35]} Rb1 {[%emt 0:03:01]} 23. Qxc5 {[%emt 0:06:12]} Nf4 {[%emt 0:02:36]} 24. Kh1 {[%emt 0:00:01]} Rxd1 {[%emt 0:03:59]} 25. Rfxd1 {[%emt 0:00:23] Black must now prevent Rd8.} Qh3 {[%emt 0:00:11] [#]} 26. Qxf8+ $3 {[%emt 0:01:19] Weighted Error Value: White=0.03 (flawless) /Black=0.48.  Loses game:     	---       	Black=1      Inaccurate:     	White=1     	Black=3      OK:         	White=10    	Black=5      Best:        	White=4     	---} 1-0

[Event "3rd President Cup-A 2024"]
[Site "Tashkent"]
[Date "2024.11.26"]
[Round "6.4"]
[White "Bernadskiy, Vitaliy"]
[Black "Neelash Saha"]
[Result "0-1"]
[ECO "C24"]
[WhiteElo "2543"]
[BlackElo "2458"]
[Annotator "TA"]
[PlyCount "104"]
[EventDate "2024.11.22"]
[EventType "swiss"]
[EventCountry "UZB"]
[SourceTitle "playchess.com"]
[Source "ChessBase"]
[SourceQuality "1"]
[TimeControl "5400+30"]

{[%evp 58,104,-294,-325,-324,-1607,-1361,-29975,-6436,-29988,-29989,-29989,-29968,-5489,-522,-522,-510,-4813,-449,-462,-444,-458,-421,-428,-433,-441,-425,-441,-441,-626,-614,-498,-435,-500,-483,-849,-908,-856,-897,-768,-616,-1593,-1562,-5527,-5502,-6087,-4833,-29987,-1806]} 1. e4 {[%emt 0:00:03]} e5 {[%emt 0:06:50]} 2. Bc4 {[%emt 0:00:04]} Nf6 {[%emt 0:00:06]} 3. d3 {[%emt 0:00:03]} c6 {[%emt 0:00:14]} 4. Nf3 {[%emt 0:00:04]} d5 {[%emt 0:00:26]} 5. Bb3 {[%emt 0:00:05]} a5 {[%emt 0:00:05]} 6. a3 {[%emt 0:00:18]} Bd6 {[%emt 0:00:11]} 7. Nc3 {[%emt 0:01:06]} a4 {[%emt 0:00:06]} 8. Ba2 {[%emt 0:00:09]} Be6 {[%emt 1:26:32]} 9. exd5 {[%emt 0:00:58]} cxd5 {[%emt 0:00:00]} 10. Bg5 {[%emt 0:03:12]} Ra5 {[%emt 0:00:00]} 11. O-O {[%emt 0:00:51]} Nc6 {[%emt 0:00:00]} 12. Re1 {[%emt 0:04:22]} O-O {[%emt 0:00:00]} 13. Bh4 {[%emt 0:00:49]} Re8 {[%emt 0:00:00]} 14. Ng5 {[%emt 0:04:28]} Nd4 {[%emt 0:00:00]} 15. Nxe6 {[%emt 0:02:01]} fxe6 {[%emt 0:00:00]} 16. Bg5 {[%emt 0:05:33]} Qc7 {[%emt 0:00:00]} 17. Bd2 {[%emt 0:01:47]} Ra6 {[%emt 0:00:00]} 18. Be3 {[%emt 0:00:30]} Rf8 {[%emt 0:00:00]} 19. h3 {[%emt 0:02:02]} Qf7 {[%emt 0:00:00]} 20. Nxa4 {[%emt 0:12:05]} Nf5 {[%emt 0:00:00]} 21. c4 {[%emt 0:01:25]} Nh5 {[%emt 0:00:00]} 22. Bg5 {[%emt 0:08:22]} h6 {[%emt 0:00:00]} 23. cxd5 {[%emt 0:04:42]} hxg5 {[%emt 0:00:00]} 24. dxe6 {[%emt 0:00:06]} Qe7 {[%emt 0:00:00]} 25. Qxh5 {[%emt 0:00:43]} Rxa4 {[%emt 0:00:00]} 26. Re4 {[%emt 0:00:07]} Rxe4 {[%emt 0:00:00]} 27. dxe4 {[%emt 0:00:08]} Nh6 {[%emt 0:00:00]} 28. Rd1 {[%emt 0:04:11]} Kh7 {[%emt 0:00:00]} 29. Rd3 {[%emt 0:00:08]} Bc5 {[%emt 0:00:00]} 30. Rd2 {[%emt 0:13:05] [#]} Bd4 $1 {[%emt 0:00:00]} 31. Rc2 $2 {[%emt 0:01:35]} (31. b4) 31... g4 $19 {[%emt 0:00:00]} 32. hxg4 {[%emt 0:01:19]} Rxf2 {[%emt 0:00:00]} (32... Qf6 33. g5 Bxf2+ 34. Kh1 $11) 33. Rxf2 {[%emt 0:00:38]} Qf6 {[%emt 0:00:00]} 34. e7 {[%emt 0:02:32]} Bxf2+ {[%emt 0:02:22]} 35. Kf1 {[%emt 0:02:00]} Bc5+ {[%emt 0:01:13]} (35... Bg3+ $142 36. Ke2 Qf2+ (36... Qxe7 $2 37. Bd5 $19) 37. Kd1 Qe1+ (37... Qxb2 38. Bg8+ Kh8 39. e8=Q $11) (37... Bf4 $2 38. Qg6+ Kxg6 39. e8=Q+ Kh7 40. Qd8 $19) 38. Kc2 Qe2+ (38... Qxe4+ $2 39. Kb3 $19) 39. Kb3 Qd3+ (39... Qxe4 40. Bb1 $11) 40. Ka4 Qc2+ (40... Qxe4+ 41. Ka5 $11) 41. Ka5 Qc5+ (41... Qxe4 42. e8=Q Be1+ 43. b4 Bxb4+ 44. axb4 b6+ 45. Ka6 Qd3+ 46. Kb7) 42. Ka4 Qc6+ (42... Qxe7 $2 43. Bd5 $19) 43. Kb3 b5 (43... Qxe4 44. Bb1 $11) 44. Qg6+ Kxg6 45. e8=B+ Qxe8) 36. Ke2 $19 {[%emt 0:00:24]} Qf2+ {[%emt 0:00:25]} (36... Qxe7 37. g5 $11) 37. Kd3 {[%emt 0:00:47]} (37. Kd1 $142 Be3 (37... Bxe7 $2 38. Qxe5 Qf1+ 39. Kc2 $19) 38. Qg6+ (38. Bg8+ $2 Kh8) 38... Kxg6 39. e8=Q+ Kh7 40. Qd7) 37... Qd4+ {[%emt 0:00:11]} (37... Qe3+ $142 38. Kc4 Qd4+ (38... Bxe7 $2 39. Qe8 $19) 39. Kb3 Qd3+ (39... Bxe7 $2 40. Bb1 $19) 40. Ka4 Qa6+ (40... Bxe7 $2 41. Qxe5 Qc2+ 42. Bb3 $19) (40... Qxe4+ $2 41. Ka5 $19) 41. Kb3 Qd3+ (41... Bxe7 $2 42. Qxe5 Bf6 43. Qc5 $19) 42. Ka4 Qa6+ (42... Bxe7 $2 43. Qxe5 Qa6+ 44. Kb3 $19) (42... Qxe4+ $2 43. Ka5 $19) 43. Kb3 Qd3+ (43... Bxe7 $2 44. Qxe5 Bf6 45. Qd5 $19)) 38. Kc2 $19 {[%emt 0:01:04]} Qxe4+ {[%emt 0:01:13]} (38... Bxe7 39. Bd5 g6 40. Qh3 $17) 39. Kc3 {[%emt 0:00:02]} Bxe7 {[%emt 0:00:35]} 40. Bc4 {[%emt 0:04:02]} Qxg2 {[%emt 0:03:17]} 41. Kb3 {[%emt 0:02:02]} Qf3+ {[%emt 0:03:51]} (41... Qxg4 42. Qxe5 Qf3+ 43. Ka2 $19) 42. Ka2 {[%emt 0:00:17]} Bf6 {[%emt 0:00:33]} ({Weaker is} 42... Qxg4 43. Bd3+ g6 44. Qxe5 $19) 43. Be6 {[%emt 0:02:19]} (43. Qh2 $142) 43... g6 $19 {[%emt 0:00:09]} 44. Qh2 {[%emt 0:00:03]} Qc6 {[%emt 0:00:08]} 45. Bb3 {[%emt 0:00:31]} e4 {[%emt 0:01:22]} 46. Qf4 {[%emt 0:00:11]} (46. Qg2 $142) 46... g5 $19 {[%emt 0:00:44]} 47. Qf2 {[%emt 0:00:37]} Kg7 {[%emt 0:00:08]} ({Less strong is} 47... Nxg4 48. Qf5+ Kg7 49. Qxg4 $17) 48. Qe2 {[%emt 0:00:02]} Qc1 {[%emt 0:00:33]} 49. Bd5 {[%emt 0:00:00]} e3 {[%emt 0:00:00]} 50. Bf3 {[%emt 0:00:22]} Nf7 {[%emt 0:00:29]} 51. Qb5 {[%emt 0:00:03]} Qd2 {[%emt 0:00:07]} 52. Be2 {[%emt 0:00:48] [#]} b6 {[%emt 0:00:11]} (52... Nd6 $142 $1 53. Qb6 Qxe2 54. Qc7+ Nf7 55. Qc1 Bxb2 (55... Qxg4 $2 56. Qxe3 Qd7 57. Kb3 $19) 56. Qxb2+ Qxb2+ 57. Kxb2 e2 58. Kc3 e1=Q+ (58... e1=R 59. Kc4 Rg1 60. Kd4 Rxg4+ 61. Kd3 Ra4 62. Kd2 Rxa3 63. Ke2 g4 64. Kf2 g3+ 65. Ke2 Ne5 66. Kd2 g2 67. Kc2 g1=Q 68. Kb2 Nc4+ 69. Kc2 Qh2+ 70. Kd1 Qd2#) 59. Kc4 Qd2 60. Kc5 Qc3+ 61. Kb6 Qc6+ (61... Qxa3 {is a self mate.} 62. Kb5 Nd6+ 63. Kb6 Qc3 64. Ka7 Qc6 65. Kb8 b6 66. Ka7 Qb7#) 62. Ka7 b5 63. a4 Nd8 64. axb5 Qb7#) 0-1

[Event "3rd President Cup-A 2024"]
[Site "Tashkent"]
[Date "2024.11.26"]
[Round "6.5"]
[White "Tabatabaei, M. Amin"]
[Black "Nigmatov, Ortik"]
[Result "*"]
[ECO "E11"]
[WhiteElo "2686"]
[BlackElo "2447"]
[Annotator "TA"]
[PlyCount "22"]
[EventDate "2024.11.22"]
[EventType "swiss"]
[EventCountry "UZB"]
[SourceTitle "playchess.com"]
[Source "ChessBase"]
[SourceQuality "1"]
[TimeControl "5400+30"]

{[%evp 14,22,4,0,25,28,56,18,38,0,12]} 1. d4 {[%emt 0:03:29]} d5 {[%emt 0:02:28]} 2. c4 {[%emt 0:00:21]} e6 {[%emt 0:00:07]} 3. Nf3 {[%emt 0:00:15]} Nf6 {[%emt 0:00:08]} 4. g3 {[%emt 0:00:12]} Bb4+ {[%emt 0:00:40]} 5. Bd2 {[%emt 0:00:38]} Be7 {[%emt 0:00:07]} 6. Bg2 {[%emt 0:00:12]} O-O {[%emt 1:30:00]} 7. O-O {[%emt 0:00:19]} c6 {[%emt 0:00:04]} 8. Qc2 {[%emt 0:00:21]} a5 {[%emt 0:00:04]} 9. Rd1 {[%emt 0:01:11]} a4 {[%emt 0:00:07]} 10. Bf4 {[%emt 0:01:31]} Nbd7 {[%emt 0:03:49]} 11. Nbd2 {[%emt 0:01:13]} Nh5 {[%emt 0:01:38] Black got outplayed after the opening.   Weighted Error Value: White=0.21 (precise) /Black=0.17 (very precise) .  Inaccurate:     	White=2     	Black=1      OK:         	White=1     	Black=2} *